fUSD/lending_fUSD_20240524
["ID","MTS","AMOUNT","RATE_DAILY","PERIOD"]
[327838156,1716537038620,-789.86639451,0.00012998,2]
[327838158,1716537038630,-231.53054482,0.00012998,2]
[327838159,1716537038639,-155.0,0.00012998,2]
[327838161,1716537038648,-162.15064589,0.00012998,2]
[327838163,1716537038657,-683.44970038,0.00012998,2]
[327838165,1716537038670,-155.26323273,0.00012998,2]
[327838167,1716537038679,-44750.98134945,0.00012998,2]
[327838169,1716537038689,-266.01233646,0.00012999,2]
[327838171,1716537038698,-1064.33887229,0.00012999,2]
[327838173,1716537038709,-301.27249675,0.00012999,2]
[327838175,1716537038719,-273.26372824,0.00012999,2]
[327838177,1716537038728,-2360.02421129,0.00012999,2]
[327838179,1716537038738,-438109.0900039,0.00013,2]
[327838188,1716537038811,-0.56786437,0.00013,2]
[327838190,1716537038823,-6395.36206289,0.00013,2]
[327838192,1716537038834,-5862.51986911,0.00013,2]
[327838195,1716537038849,-727.39999998,0.00013,2]
[327838197,1716537038860,-139407.99999998,0.00013,2]
[327838340,1716537040346,-2431.5792,0.00011519,2]
[327838341,1716537040356,-154.09227675,0.000129,2]
[327838342,1716537040366,-251.65255011,0.00013,2]
[327838343,1716537040879,-1169.77984122,0.00013,2]
[327838344,1716537041093,-456.73243816,0.00013,2]
[327838345,1716537041150,-918.31,0.00013,2]
[327838358,1716537042911,-1235.83496356,0.00013,2]
[327838360,1716537043067,-298.72,0.00013,2]
[327838363,1716537043095,-722048.79473053,0.00013,2]
[327838364,1716537043107,-488.15128004,0.00013,2]
[327838365,1716537043118,-11690.29223695,0.00013,2]
[327838366,1716537043130,-610722.79794027,0.00013,2]
[327838368,1716537043657,-730.07140233,0.000129,2]
[327838369,1716537043673,-652.62529538,0.000129,2]
[327838370,1716537043690,-1620.87313189,0.000129,2]
[327838371,1716537043702,-611.98425027,0.000129,2]
[327838544,1716537045911,-774.68725396,0.000129,2]
[327838617,1716537046630,-534.7115673,0.00012876,2]
[327838618,1716537046640,-3109.75866617,0.000129,2]
[327838619,1716537046649,-193.810858,0.00012999,2]
[327838620,1716537046659,-18619.49960854,0.00013,2]
[327838621,1716537046739,-5638.348,0.00013,2]
[327838622,1716537046798,-993.06454,0.00013,2]
[327838623,1716537046856,-1679.14792167,0.00013,2]
[327838659,1716538232080,-162.15064589,9.387e-05,2]
[327838660,1716538232091,-516.62800356,9.388e-05,2]
[327838661,1716538232099,-155.0,9.388e-05,2]
[327838662,1716538232108,-624.01902801,9.389e-05,2]
[327838663,1716538232117,-344.72853411,9.389e-05,2]
[327838664,1716538232126,-155.0,9.389e-05,2]
[327838665,1716538232138,-155.0,9.389e-05,2]
[327838666,1716538232148,-321.96055433,9.389e-05,2]
[327838667,1716538232156,-155.0,9.39e-05,2]
[327838668,1716538232165,-3286.97999917,9.39e-05,2]
[327838669,1716538232174,-1381.93423711,9.391e-05,2]
[327838670,1716538232184,-240.93147655,9.392e-05,2]
[327838671,1716538232193,-155.0,9.392e-05,2]
[327838672,1716538232203,-168.01309811,9.392e-05,2]
[327838673,1716538232212,-3720.42247402,9.392e-05,2]
[327838674,1716538232223,-205.03192926,9.393e-05,2]
[327838675,1716538232232,-150.0,9.401e-05,2]
[327838676,1716538232241,-253.58312312,9.444e-05,2]
[327838677,1716538232251,-499.99,9.67e-05,2]
[327838678,1716538232260,-154.9,9.67e-05,2]
[327838679,1716538232269,-1857.08,9.67e-05,2]
[327838680,1716538232279,-150.99,9.67e-05,2]
[327838681,1716538232289,-279.26,9.67e-05,2]
[327838682,1716538232297,-747.48,0.0001,2]
[327838683,1716538232307,-299.99,0.0001,2]
[327838684,1716538232316,-208.81790596,0.0001,2]
[327838685,1716538232330,-210.0,0.00010342,2]
[327838686,1716538232340,-200.0,0.000107,2]
[327838687,1716538232348,-12195.32,0.00011104,2]
[327838688,1716538232359,-1155.6885,0.00011328,2]
[327838689,1716538232368,-167.58,0.00011355,2]
[327838690,1716538232378,-2166.6333,0.00011419,2]
[327838691,1716538232387,-663.00471014,0.0001143,2]
[327838692,1716538232396,-29509.56309124,0.00011431,2]
[327838693,1716538232417,-348.5,0.00011431,2]
[327838694,1716538232428,-1146.95174,0.00011431,2]
[327838695,1716538232439,-3300.0,0.00011431,2]
[327838696,1716538232451,-3170.31434243,0.00011431,2]
[327838697,1716538232460,-789.86639451,0.00011517,2]
[327838698,1716538232470,-683.44970038,0.00011517,2]
[327838699,1716538232480,-155.26323273,0.00011517,2]
[327838700,1716538232489,-231.53054482,0.00011517,2]
[327838701,1716538232499,-711.54139824,0.00011517,2]
[327838702,1716538232508,-789.59156933,0.00011517,2]
[327838703,1716538232518,-155.65892591,0.00011517,2]
[327838704,1716538232528,-815.68389169,0.00011517,2]
[327838705,1716538232540,-3.24388395,0.00011517,2]
[327838706,1716538232550,-872.27883413,0.00011517,2]
[327838707,1716538232561,-400.92248412,0.00011517,2]
[327838708,1716538232574,-336.90806608,0.00011517,2]
[327838709,1716538232586,-548.73255511,0.00011517,2]
[327838710,1716538232595,-155.0,0.00011517,2]
[327838711,1716538232604,-87.90696941,0.00011518,2]
[327838712,1716538232615,-694.43388778,0.00011518,2]
[327838713,1716538232625,-604.98695672,0.00011518,2]
[327838714,1716538232640,-1751.81163491,0.00011518,2]
[327838715,1716538232650,-800.0326,0.00011519,2]
[327838716,1716538232660,-8826.77745595,0.00011519,2]
[327838717,1716538232671,-369.95948262,0.00011519,2]
[327838718,1716538232683,-467.5,0.00011519,2]
[327838719,1716538232694,-368.36047548,0.00011519,2]
[327838720,1716538232705,-270.26587227,0.00011519,2]
[327838721,1716538232716,-4165.00198084,0.00011519,2]
[327838722,1716538232728,-33546.46608171,0.00011519,2]
[327838723,1716538232739,-397.82076205,0.00011519,2]
[327838724,1716538232750,-1329.28402773,0.00011519,2]
[327838725,1716538232762,-600.0,0.00011519,2]
[327838726,1716538232773,-1000.0,0.00011519,2]
[327838727,1716538232784,-6721.8,0.00011519,2]
[327838728,1716538232796,-275.18598875,0.00011519,2]
[327838733,1716538238053,-490.1733676,0.00011519,2]
[327838734,1716538238116,-455.32975798,0.00011519,2]
[327838735,1716538238130,-1160.87509356,0.00011519,2]
[327838736,1716538238141,-4679.74995851,0.00011519,2]
[327838737,1716538238155,-1135.53216571,0.00011519,2]
[327838738,1716538238167,-450.89332225,0.00011519,2]
[327838739,1716538238181,-272.32466048,0.00011519,2]
[327838740,1716538238192,-324.95664198,0.00011519,2]
[327838741,1716538238203,-2330.71214622,0.00011519,2]
[327838742,1716538238215,-1651.32,0.00011519,2]
[327838743,1716538238226,-967.5007119,0.00011519,2]
[327838744,1716538238270,-172742.21004641,0.00011519,2]
[327838745,1716538238280,-1000.0,0.00011519,2]
[327838746,1716538238289,-2604.67361667,0.0001274,2]
[327838747,1716538238298,-1566.03064875,0.00012761,2]
[327838748,1716538238308,-336.01960759,0.00012798,2]
[327838749,1716538238317,-336.01960758,0.00012849,2]
[327838750,1716538238328,-252.49288459,0.00012869,2]
[327838751,1716538238338,-193.95878636,0.00012869,2]
[327838752,1716538238347,-171.75930095,0.00012889,2]
[327838753,1716538238356,-171.75930094,0.00012889,2]
[327838754,1716538238366,-237.40951866,0.00012891,2]
[327838755,1716538238375,-154.09227676,0.00012891,2]
[327838756,1716538238386,-237.40951865,0.00012893,2]
[327838757,1716538238395,-237.40951865,0.00012896,2]
[327838758,1716538238404,-200.0,0.00012896,2]
[327838759,1716538238413,-1000.0,0.00012896,2]
[327838760,1716538238422,-200.0,0.00012896,2]
[327838761,1716538238431,-500.0,0.00012896,2]
[327838762,1716538238440,-237.40951865,0.00012898,2]
[327838763,1716538238450,-162.86481413,0.00012898,2]
[327838765,1716538238460,-409.78915707,0.00012898,2]
[327838767,1716538238469,-409.78915701,0.00012898,2]
[327838769,1716538238478,-409.78915701,0.00012898,2]
[327838770,1716538238487,-409.78915701,0.00012898,2]
[327838772,1716538238496,-409.78915701,0.00012898,2]
[327838774,1716538238505,-183.27059638,0.00012898,2]
[327838776,1716538238515,-409.78915701,0.00012898,2]
[327838778,1716538238524,-409.78915701,0.00012898,2]
[327838781,1716538238533,-409.78915701,0.00012898,2]
[327838784,1716538238542,-409.78915701,0.00012898,2]
[327838787,1716538238552,-15976.5128,0.00012898,2]
[327838790,1716538238561,-100000.0,0.00012898,2]
[327838792,1716538238570,-8045.40502423,0.00012898,2]
[327838794,1716538238580,-1000.0,0.00012898,2]
[327838796,1716538238589,-1000.0,0.00012898,2]
[327838798,1716538238598,-1000.0,0.00012898,2]
[327838800,1716538238607,-1000.0,0.00012898,2]
[327838802,1716538238616,-1000.0,0.00012898,2]
[327838804,1716538238625,-1000.0,0.00012898,2]
[327838806,1716538238635,-1000.0,0.00012898,2]
[327838808,1716538238644,-1000.0,0.00012898,2]
[327838810,1716538238654,-1000.0,0.00012898,2]
[327838812,1716538238663,-1000.0,0.00012898,2]
[327838814,1716538238672,-1000.0,0.00012898,2]
[327838816,1716538238681,-10000.0,0.000129,2]
[327838818,1716538238691,-22027.40803611,0.000129,2]
[327838820,1716538238700,-1000.0,0.000129,2]
[327838822,1716538238709,-237.40951865,0.000129,2]
[327838824,1716538238719,-409.78915701,0.000129,2]
[327838826,1716538238728,-7500.0,0.000129,2]
[327838827,1716538238737,-171.75930094,0.000129,2]
[327838828,1716538238746,-1000.0,0.000129,2]
[327838829,1716538238755,-336.01960758,0.000129,2]
[327838830,1716538238764,-199.79942975,0.000129,2]
[327838831,1716538238773,-10041.9681049,0.000129,2]
[327838832,1716538238782,-564.42511793,0.00012981,2]
[327838833,1716538238792,-4421.9625936,0.00012987,2]
[327838834,1716538238800,-238.2207082,0.00012987,2]
[327838835,1716538238809,-21735.7517745,0.00012987,2]
[327838836,1716538238819,-5046.5073398,0.00012987,2]
[327838837,1716538238829,-159.51,0.00012988,2]
[327838838,1716538238838,-159.51,0.0001299,2]
[327838839,1716538238847,-159.51,0.0001299,2]
[327838840,1716538238856,-159.51,0.0001299,2]
[327838841,1716538238865,-159.51,0.0001299,2]
[327838842,1716538238874,-159.51,0.0001299,2]
[327838843,1716538238882,-159.51,0.0001299,2]
[327838844,1716538238892,-159.51,0.0001299,2]
[327838845,1716538238901,-159.51,0.0001299,2]
[327838846,1716538238909,-159.51,0.0001299,2]
[327838847,1716538238919,-159.51,0.0001299,2]
[327838848,1716538238928,-159.51,0.0001299,2]
[327838849,1716538238937,-159.51,0.0001299,2]
[327838850,1716538238946,-159.51,0.0001299,2]
[327838851,1716538238955,-159.51,0.0001299,2]
[327838852,1716538238964,-564.42511793,0.0001299,2]
[327838853,1716538238973,-564.42511793,0.0001299,2]
[327838854,1716538238982,-4690.9483366,0.00012991,2]
[327838855,1716538238990,-4959.9340797,0.00012991,2]
[327838856,1716538238999,-5228.9198227,0.00012991,2]
[327838857,1716538239008,-5497.9055657,0.00012991,2]
[327838858,1716538239017,-5766.8913087,0.00012991,2]
[327838859,1716538239026,-252.7115531,0.00012991,2]
[327838860,1716538239036,-267.202398,0.00012991,2]
[327838861,1716538239045,-281.693243,0.00012991,2]
[327838862,1716538239056,-296.1840879,0.00012991,2]
[327838863,1716538239069,-310.6749328,0.00012991,2]
[327838864,1716538239080,-22869.9619282,0.00012991,2]
[327838865,1716538239089,-24004.1720818,0.00012991,2]
[327838866,1716538239099,-25138.3822355,0.00012991,2]
[327838867,1716538239108,-26272.5923891,0.00012991,2]
[327838868,1716538239118,-27406.8025428,0.00012991,2]
[327838869,1716538239127,-5309.8430608,0.00012991,2]
[327838870,1716538239137,-5573.1787818,0.00012991,2]
[327838871,1716538239151,-5836.5145028,0.00012991,2]
[327838872,1716538239161,-6099.8502239,0.00012991,2]
[327838873,1716538239170,-6363.1859449,0.00012991,2]
[327838874,1716538239179,-155.13894279,0.00012996,2]
[327838875,1716538239189,-1210.37915373,0.00012996,2]
[327838876,1716538239198,-155.0,0.00012996,2]
[327838877,1716538239208,-2222.04647422,0.00012996,2]
[327838878,1716538239217,-525.01264179,0.00012996,2]
[327838879,1716538239226,-325.96856929,0.00012996,2]
[327838880,1716538239236,-255.20118883,0.00012996,2]
[327838881,1716538239246,-820.5593734,0.00012996,2]
[327838882,1716538239255,-159.53738656,0.00012996,2]
[327838883,1716538239264,-206.3699626,0.00012996,2]
[327838884,1716538239273,-305.53903369,0.00012996,2]
[327838885,1716538239283,-206.64367532,0.00012996,2]
[327838886,1716538239292,-276.38529063,0.00012996,2]
[327838887,1716538239301,-157.35021688,0.00012996,2]
[327838888,1716538239311,-259.23567921,0.00012997,2]
[327838889,1716538239322,-5456.75715038,0.00012997,2]
[327838890,1716538239332,-534.0,0.00012998,2]
[327838891,1716538239505,-327.5137528,0.00012998,2]
[327838892,1716538239520,-380.55267703,0.00012998,2]
[327838893,1716538239530,-159.44649709,0.00012998,2]
[327838894,1716538239541,-323.68137164,0.00012998,2]
[327838895,1716538239551,-23506.27137631,0.00012998,2]
[327838896,1716538239561,-155.46476382,0.00012998,2]
[327838897,1716538239571,-179.28826561,0.00012998,2]
[327838898,1716538239581,-4212.63801329,0.00012998,2]
[327838899,1716538239591,-204.34387367,0.00012998,2]
[327838900,1716538239602,-2185.42797665,0.00012998,2]
[327838901,1716538239612,-270837.99283542,0.00012998,2]
[327838902,1716538239621,-1064.33887229,0.00012998,2]
[327838903,1716538239631,-237.20973575,0.00012998,2]
[327838904,1716538239641,-301.27249675,0.00012998,2]
[327838905,1716538239650,-266.01233646,0.00012998,2]
[327838906,1716538239660,-234.15716962,0.00012998,2]
[327838907,1716538239671,-362.06064095,0.00012998,2]
[327838908,1716538239681,-157.30591297,0.00012998,2]
[327838909,1716538239690,-156.40259508,0.00012998,2]
[327838910,1716538239700,-194.90807186,0.00012998,2]
[327838911,1716538239710,-155.65337516,0.00012998,2]
[327838912,1716538239720,-155.43401734,0.00012998,2]
[327838913,1716538239731,-44750.98134945,0.00012998,2]
[327838914,1716538239740,-254.93123399,0.00012999,2]
[327838915,1716538239751,-684.0531349,0.00012999,2]
[327838916,1716538239760,-4278.94902585,0.00012999,2]
[327838917,1716538239771,-536.00152179,0.00012999,2]
[327838918,1716538239780,-364.17738736,0.00012999,2]
[327838919,1716538239790,-155.35740999,0.00012999,2]
[327838920,1716538239800,-166.82308813,0.00012999,2]
[327838921,1716538239809,-273.26372824,0.00012999,2]
[327838922,1716538239819,-19023.70913186,0.00013,2]
[327838923,1716538239834,-253.67024202,0.00013,2]
[327838924,1716538239853,-2348.40046312,0.00013,2]
[327838925,1716538239865,-1014236.29810254,0.00013,2]
[327838950,1716538241493,-1391.51417647,0.00012999,2]
[327838951,1716538241505,-3328.5342461,0.00012999,2]
[327838952,1716538241515,-18794.25455588,0.00013,2]
[327838973,1716538243688,-334.00000016,0.00012998,2]
[327838974,1716538243703,-329.0115424,0.00012998,2]
[327838975,1716538243722,-305.41449521,0.00012998,2]
[327838976,1716538243748,-6486.01576605,0.00013,2]
[327838984,1716538246187,-440.23114425,0.00012998,2]
[327838985,1716538246196,-241.83059317,0.00012999,2]
[327838986,1716538246206,-210.34057324,0.00012999,2]
[327838987,1716538246215,-182.34053557,0.00012999,2]
[327838988,1716538246225,-161.96187779,0.00012999,2]
[327838989,1716538246234,-534.8705156,0.00013,2]
[327838990,1716538246245,-1346.7,0.00013,2]
[327838991,1716538246256,-324.95834368,0.00013,2]
[327838992,1716538246271,-1685.47391358,0.00013,2]
[327838993,1716538246313,-856.20926424,0.00013,2]
[327838994,1716538246379,-2018.48520187,0.00013,2]
[327838995,1716538246459,-2725.03742778,0.00013,2]
[327839284,1716539022123,175.18,0.00029447,120]
[327839287,1716539167643,169.316648,0.0001219,10]
[327839330,1716539432401,-478.1956183,0.00011798,2]
[327839331,1716539432413,-38.43238526,0.00011798,2]
[327839332,1716539432422,-208.81790596,0.00011798,2]
[327839333,1716539432432,-155.0,0.00011799,2]
[327839334,1716539432444,-447.02786322,0.00011799,2]
[327839335,1716539432453,-541.36341189,0.00011799,2]
[327839336,1716539432463,-250.0,0.00011811,2]
[327839337,1716539432472,-2560.43893447,0.00012191,2]
[327839338,1716539432482,-164.57,0.00012202,2]
[327839339,1716539432491,-164.57,0.00012281,2]
[327839340,1716539432500,-164.57,0.00012361,2]
[327839341,1716539432510,-150.99,0.00012361,2]
[327839342,1716539432522,-164.57,0.0001244,2]
[327839343,1716539432532,-130.65146838,0.00012519,2]
[327839344,1716539432546,-19.34853162,0.00012519,2]
[327839345,1716539432555,-293.69,0.0001252,2]
[327839346,1716539432564,-281.39651429,0.0001252,2]
[327839347,1716539432576,-218.59348571,0.0001252,2]
[327839348,1716539432585,-164.57,0.0001252,2]
[327839349,1716539432594,-164.57,0.00012599,2]
[327839350,1716539432603,-164.57,0.00012679,2]
[327839351,1716539432613,-164.57,0.00012758,2]
[327839352,1716539432622,-35378.96571757,0.00012797,2]
[327839353,1716539432631,-7338.6283104,0.00012798,2]
[327839354,1716539432640,-1640.8304,0.00012798,2]
[327839355,1716539432650,-27538.2876,0.000128,2]
[327839356,1716539432659,-174.2516,0.000128,2]
[327839357,1716539432667,-193.6404,0.000128,2]
[327839358,1716539432677,-7046.0499,0.000128,2]
[327839359,1716539432687,-870.34,0.000128,2]
[327839360,1716539432696,-1785.3788,0.000128,2]
[327839361,1716539432705,-164.57,0.00012838,2]
[327839362,1716539432715,-153.78870709,0.00012869,2]
[327839363,1716539432725,-2485.48694,0.0001287,2]
[327839364,1716539432735,-1566.41558323,0.00012876,2]
[327839365,1716539432744,-159.52436005,0.00012889,2]
[327839366,1716539432754,-159.52436003,0.00012889,2]
[327839367,1716539432763,-159.52436003,0.00012889,2]
[327839368,1716539432773,-159.52436003,0.00012889,2]
[327839369,1716539432783,-200.0,0.00012896,2]
[327839370,1716539432795,-1000.0,0.00012896,2]
[327839371,1716539432804,-202.913466,0.00012896,2]
[327839372,1716539432814,-500.0,0.00012896,2]
[327839373,1716539432824,-4278.94902585,0.00012898,2]
[327839374,1716539432834,-155.0,0.00012898,2]
[327839375,1716539432844,-406.15859567,0.00012898,2]
[327839376,1716539432853,-204.71931777,0.00012898,2]
[327839377,1716539432862,-155.0,0.00012898,2]
[327839378,1716539432872,-237.41199557,0.00012898,2]
[327839379,1716539432881,-361.22735375,0.00012898,2]
[327839380,1716539432889,-834.74999327,0.00012898,2]
[327839381,1716539432899,-1495.05749469,0.00012898,2]
[327839382,1716539432909,-523.62500017,0.00012898,2]
[327839383,1716539432918,-173.54651541,0.00012898,2]
[327839384,1716539432928,-536.00152179,0.00012898,2]
[327839385,1716539432937,-6754.5911,0.00012899,2]
[327839386,1716539432948,-1000.0,0.000129,2]
[327839387,1716539432957,-10000.0,0.000129,2]
[327839388,1716539432967,-62773.19321388,0.000129,2]
[327839389,1716539432979,-5685.52181534,0.000129,2]
[327839390,1716539432991,-94481.43497326,0.000129,2]
[327839391,1716539433544,-9069.68526518,0.000129,2]
[327839392,1716539433593,-3527.51976002,0.000129,2]
[327839393,1716539433605,-440.52331929,0.000129,2]
[327839394,1716539433617,-348.38,0.000129,2]
[327839395,1716539433637,-8545.57652392,0.000129,2]
[327839396,1716539433649,-253.28246403,0.000129,2]
[327839397,1716539433802,-486.70279003,0.000129,2]
[327839398,1716539433813,-6689.011,0.000129,2]
[327839510,1716539438843,-953.23988846,0.000129,2]
[327839511,1716539438855,-2423.28252819,0.000129,2]
[327839512,1716539438867,-1342.2235,0.000129,2]
[327839513,1716539438878,-8215.920362,0.000129,2]
[327839514,1716539438890,-3155.5502,0.000129,2]
[327839515,1716539438902,-33450.0,0.000129,2]
[327839516,1716539438983,-3158.9523964,0.000129,2]
[327839517,1716539438995,-1000.0,0.000129,2]
[327839518,1716539439005,-2293.61449058,0.000129,2]
[327839519,1716539439015,-27062.26671613,0.000129,2]
[327839526,1716539440835,-2748.91184999,0.000129,2]
[327839527,1716539440848,-4712.58167491,0.000129,2]
[327839528,1716539441355,-1335.0,0.000129,2]
[327839529,1716539441407,-60734.85775897,0.000129,2]
[327839530,1716539441418,-7500.0,0.000129,2]
[327839531,1716539441428,-159.52436003,0.000129,2]
[327839532,1716539441443,-2309.65898,0.000129,2]
[327839533,1716539441453,-2309.65897999,0.000129,2]
[327839534,1716539441462,-2309.65897999,0.000129,2]
[327839535,1716539441472,-2309.65897999,0.000129,2]
[327839536,1716539441483,-2309.65897999,0.000129,2]
[327839537,1716539441492,-1000.0,0.000129,2]
[327839538,1716539441502,-2309.65897999,0.000129,2]
[327839539,1716539441512,-711.9193267,0.000129,2]
[327839540,1716539441522,-2309.65897999,0.000129,2]
[327839541,1716539441534,-2309.65897999,0.000129,2]
[327839542,1716539441544,-3580.75899396,0.000129,2]
[327839543,1716539441557,-7928.3543548,0.00012988,2]
[327839544,1716539441567,-477.1051984,0.00012988,2]
[327839545,1716539441576,-313.7855996,0.00012988,2]
[327839546,1716539441586,-2903.49637621,0.00012989,2]
[327839547,1716539441596,-8232.074789,0.00012991,2]
[327839548,1716539441605,-8535.7952232,0.00012991,2]
[327839550,1716539441615,-8839.5156574,0.00012991,2]
[327839552,1716539441625,-9143.2360916,0.00012991,2]
[327839554,1716539441635,-9446.9565258,0.00012991,2]
[327839556,1716539441644,-495.3822067,0.00012991,2]
[327839558,1716539441654,-513.659215,0.00012991,2]
[327839560,1716539441664,-531.9362232,0.00012991,2]
[327839562,1716539441674,-550.2132315,0.00012991,2]
[327839564,1716539441683,-568.4902397,0.00012991,2]
[327839566,1716539441693,-325.8061394,0.00012991,2]
[327839568,1716539441703,-337.8266791,0.00012991,2]
[327839570,1716539441713,-349.8472188,0.00012991,2]
[327839572,1716539441723,-361.8677586,0.00012991,2]
[327839574,1716539441734,-373.8882983,0.00012991,2]
[327839576,1716539441744,-237.22996103,0.00012997,2]
[327839578,1716539441754,-10529.4669443,0.00012998,2]
[327839580,1716539441763,-248.62293251,0.00012999,2]
[327839583,1716539441773,-321.43930767,0.00012999,2]
[327839585,1716539441782,-290.18108048,0.00012999,2]
[327839587,1716539441792,-919.25286637,0.00012999,2]
[327839590,1716539441803,-215.84388429,0.00012999,2]
[327839593,1716539441814,-35967.08461652,0.00012999,2]
[327839597,1716539441844,-479.63999999,0.00012999,2]
[327839600,1716539441856,-362.495,0.00012999,2]
[327839602,1716539441867,-4108.2142768,0.00012999,2]
[327839604,1716539441879,-4019.09127962,0.00012999,2]
[327839606,1716539441890,-315.6,0.00012999,2]
[327839670,1716539443657,-758.19771398,0.00012999,2]
[327839671,1716539443678,-1162.03336074,0.00012999,2]
[327839672,1716539443691,-301.70375,0.00012999,2]
[327839673,1716539443704,-6979.12074105,0.00012999,2]
[327839674,1716539443715,-579.0,0.00013,2]
[327839675,1716539443725,-4636.16208092,0.00013,2]
[327839676,1716539443736,-30312.5599355,0.00013,2]
[327839677,1716539443749,-410.8163201,0.00013,2]
[327839678,1716539443769,-3337.5,0.00013,2]
[327839679,1716539443781,-9604.08342513,0.00013,2]
[327839680,1716539443793,-434.97406262,0.00013,2]
[327839720,1716539447126,-372.15163135,0.00012998,2]
[327839721,1716539447137,-110.60805371,0.00012999,2]
[327839722,1716539447173,-95.87765069,0.00012999,2]
[327839723,1716539447182,-3418.06220699,0.00013,2]
[327839724,1716539447262,-66865.99999998,0.00013,2]
[327839725,1716539447274,-2555.44092619,0.00013,2]
[327839726,1716539447285,-985.01655896,0.00013,2]
[327839727,1716539447397,-268.62112762,0.00012999,2]
[327839728,1716539447406,-8251.15349138,0.00013,2]
[327839729,1716539447417,-1604.0647606,0.00013,2]
[327839730,1716539447537,-13404.0,0.00013,2]
[327839731,1716539447548,-5956.52448997,0.00013,2]
[327839749,1716540055306,-155.0,0.00012151,2]
[327839750,1716540055330,-505.36917605,0.00012152,2]
[327839751,1716540055355,-150.0,0.00012153,2]
[327839752,1716540055380,-1245.97765168,0.00012775,2]
[327839753,1716540055404,-364.49648891,0.00012776,2]
[327839754,1716540055427,-155.0,0.00012777,2]
[327839755,1716540055451,-306.53561288,0.00012777,2]
[327839756,1716540055475,-207.58824107,0.00012777,2]
[327839757,1716540055500,-150.0,0.00012785,2]
[327839758,1716540055524,-21053.51063025,0.00012785,2]
[327839759,1716540055549,-208.81790596,0.00012788,2]
[327839760,1716540055572,-1002.80185968,0.00012799,2]
[327839761,1716540055596,-20990.90243352,0.000128,2]
[327839762,1716540068872,2547.86451751,9.75e-05,2]
[327839763,1716540142140,346.57302212,9.75e-05,2]
[327839764,1716540158008,315.76440952,9.75e-05,2]
[327839765,1716540218579,-155.0,0.00011889,2]
[327839766,1716540218600,-207.58824107,0.0001189,2]
[327839767,1716540218622,-3010.74416602,0.0001189,2]
[327839768,1716540218646,-250.0,0.00011891,2]
[327839769,1716540218669,-150.0,0.00012623,2]
[327839770,1716540218691,-150.0,0.00012663,2]
[327839771,1716540218715,-150.0,0.00012673,2]
[327839772,1716540218735,-150.0,0.00012709,2]
[327839773,1716540218756,-300.0,0.00012726,2]
[327839774,1716540218776,-301.50627627,0.00012736,2]
[327839775,1716540218796,-1500.0,0.0001277,2]
[327839776,1716540218815,-150.0,0.00012799,2]
[327839777,1716540218835,-3225.16131664,0.000128,2]
[327839778,1716540348864,2549.05213827,9.6e-05,2]
[327839804,1716540632625,-656.89665435,0.00011889,2]
[327839805,1716540632638,-732.91429086,0.00011889,2]
[327839806,1716540632649,-110.18905479,0.00011889,2]
[327839807,1716540632659,-312.68,0.00011893,2]
[327839808,1716540632668,-150.0,0.00011896,2]
[327839809,1716540632678,-2841.18,0.00011899,2]
[327839810,1716540632687,-1861.67,0.00011899,2]
[327839811,1716540632696,-1031.88,0.00011903,2]
[327839812,1716540632706,-445.23,0.00011905,2]
[327839813,1716540632715,-583.9,0.00012102,2]
[327839814,1716540632724,-150.0,0.00012621,2]
[327839815,1716540632733,-150.0,0.00012642,2]
[327839816,1716540632744,-150.0,0.0001272,2]
[327839817,1716540632753,-300.0,0.00012733,2]
[327839818,1716540632762,-150.0,0.00012799,2]
[327839819,1716540632771,-14175.84225702,0.000128,2]
[327839820,1716540632923,-9584.06789282,0.000128,2]
[327839821,1716540632932,-358.5807,0.000128,2]
[327839822,1716540632941,-1500.0,0.00012805,2]
[327839823,1716540632950,-623.34807594,0.00012813,2]
[327839824,1716540632959,-300.0,0.00012816,2]
[327839825,1716540632968,-3259.04,0.00012816,2]
[327839826,1716540632977,-1500.0,0.00012819,2]
[327839827,1716540632987,-150.0,0.00012842,2]
[327839828,1716540632996,-301.02765778,0.00012845,2]
[327839830,1716540633005,-300.0,0.00012863,2]